bitfinex/quotes_SOLUSD_20241113
["timestamp","ask_amount","ask_price","bid_price","bid_amount"]
[1731486364394,22.64429756,205.79,205.74,0.4883894]
[1731486365339,22.64429756,205.75,205.74,0.4883894]
[1731486366121,22.64429756,205.77,205.74,0.4883894]
[1731486366550,4.86,205.76,205.74,0.4883894]
[1731486368935,22.64429756,205.79,205.74,0.4883894]
[1731486369223,4.859,205.8,205.74,0.4883894]
[1731486370435,22.64429756,205.83,205.75,22.64429756]
[1731486370904,27.50259756,205.83,205.75,22.64429756]
[1731486371171,2.29105953,205.9,205.81,22.64429756]
[1731486371185,2.29105953,205.9,205.84,22.64429756]
[1731486371437,22.64429756,205.88,205.79,22.64429756]
[1731486371536,22.64429756,205.86,205.77,22.64429756]
[1731486372535,22.64429756,205.96,205.84,22.64429756]
[1731486372759,22.64429756,205.96,205.81,22.0634]
[1731486372760,22.64429756,205.96,205.87,22.64429756]
[1731486373308,19.42323,205.99,205.94,22.64429756]
[1731486373861,2.30098346,206.0,205.96,22.64429756]
[1731486373875,22.64429756,205.99,205.9,22.64429756]
[1731486374129,22.64429756,205.97,205.88,22.64429756]
[1731486374139,7.15538346,206.0,205.92,22.64429756]
[1731486374140,2.30098346,206.0,205.92,22.64429756]
[1731486374327,4.854,206.02,205.95,22.64429756]
[1731486374631,4.854,206.02,205.93,26.52899756]
[1731486374632,27.49829756,206.02,205.93,26.52899756]
[1731486374824,4.8535,206.04,205.95,22.64429756]
[1731486375034,0.1,206.15,205.95,22.64429756]
[1731486375035,29.69840746,206.1,206.01,22.64429756]
[1731486375236,22.64429756,206.1,206.01,22.64429756]
[1731486375432,27.49639756,206.1,206.01,22.64429756]
[1731486375735,22.64429756,206.08,205.99,22.64429756]
[1731486375918,4.8521,206.1,206.01,22.64429756]
[1731486375919,27.49639756,206.1,206.01,22.64429756]
[1731486376150,4.8521,206.1,206.01,22.64429756]
[1731486376519,22.64429756,206.09,205.99,22.64429756]
[1731486376739,22.64429756,206.05,205.97,334.64429756]
[1731486377423,22.64429756,206.05,205.97,22.64429756]
[1731486377626,22.64429756,206.03,205.95,22.64429756]
[1731486378425,4.8538,206.02,205.95,22.64429756]
[1731486380534,22.64429756,206.07,205.99,22.64429756]
[1731486380922,27.49649756,206.09,205.99,22.64429756]
[1731486381115,27.49649756,206.09,205.95,312.0]
[1731486381116,22.64429756,206.05,205.97,22.64429756]
[1731486381738,4.8534,206.04,205.97,22.64429756]
[1731486381913,4.853,206.06,205.97,22.64429756]
[1731486382124,22.64429756,206.07,205.99,22.64429756]
[1731486382438,27.49669756,206.09,205.99,22.64429756]
[1731486382642,22.64429756,206.05,205.97,32.35439756]
[1731486382841,22.64429756,206.05,205.97,36.23839756]
[1731486383860,27.49759756,206.05,205.97,36.23839756]
[1731486384226,4.8533,206.05,205.97,36.23839756]
[1731486385044,4.8533,206.05,205.99,22.64429756]
[1731486385236,4.8533,206.05,205.88,27.62285016]
[1731486385237,30.085584,206.04,205.88,21.2249]
[1731486385539,22.64429756,205.98,205.89,22.64429756]
[1731486385740,22.64429756,205.94,205.85,22.64429756]
[1731486385947,22.64429756,205.92,205.83,28.76549756]
[1731486386237,22.64429756,205.92,205.81,9.7173]
[1731486386238,22.64429756,205.88,205.78,6.5054]
[1731486386425,0.1,205.94,205.78,22.64429756]
[1731486386426,22.64429756,205.87,205.78,22.64429756]
[1731486386619,22.64429756,205.87,205.8,22.64429756]
[1731486387421,27.50169756,205.87,205.78,22.64429756]
[1731486387739,22.64429756,205.83,205.76,22.64429756]
[1731486388135,22.64429756,205.85,205.76,22.64429756]
[1731486389647,4.8581,205.84,205.76,22.64429756]
[1731486390079,4.8581,205.84,205.76,26.53219756]
[1731486390346,4.856,205.93,205.82,22.64429756]
[1731486390547,22.64429756,205.92,205.82,22.64429756]
[1731486391054,22.64429756,205.9,205.82,22.64429756]
[1731486391228,22.64429756,205.92,205.84,22.64429756]
[1731486391619,4.856,205.93,205.86,22.64429756]
[1731486392239,4.856,205.93,205.84,22.64429756]
[1731486392540,4.856,205.93,205.82,32.36119756]
[1731486392541,22.64429756,205.92,205.82,32.36119756]
[1731486392850,22.64429756,205.92,205.82,36.24799756]
[1731486393036,22.64429756,205.92,205.84,22.64429756]
[1731486393248,4.856,205.93,205.84,22.64429756]
[1731486393556,4.856,205.93,205.86,22.64429756]
[1731486394465,4.8546,205.99,205.88,22.64429756]
[1731486394651,27.49889756,205.99,205.9,22.64429756]
[1731486395531,4.8546,205.99,205.92,22.64429756]
[1731486395725,27.49849756,206.01,205.94,22.64429756]
[1731486396344,4.8542,206.01,205.94,22.64429756]
[1731486399042,4.8542,206.01,205.93,312.0]
[1731486400055,22.64429756,206.06,205.98,22.64429756]
[1731486400347,22.64429756,206.04,205.96,22.64429756]
[1731486401144,4.8536,206.03,205.96,22.64429756]
[1731486401657,22.64429756,206.06,205.98,22.64429756]
[1731486402952,27.49729756,206.06,205.98,22.64429756]
[1731486404840,27.49729756,206.06,205.96,32.35489756]
[1731486405044,23.776884,206.03,205.96,22.64429756]
[1731486405563,22.64429756,206.0,205.92,22.64429756]
[1731486405803,22.64429756,205.98,205.9,22.64429756]
[1731486406590,22.64429756,206.01,205.92,22.64429756]
[1731486406600,23.776884,206.0,205.92,22.64429756]
[1731486407009,4.8548,205.98,205.92,22.64429756]
[1731486407133,4.8548,205.98,205.9,32.35769756]
[1731486407534,4.8548,205.98,205.9,22.64429756]
[1731486407842,22.64429756,205.97,205.9,22.64429756]
[1731486408255,22.64429756,205.99,205.9,36.24289756]
[1731486408428,23.776884,205.98,205.9,32.35769756]
[1731486409166,4.855,205.97,205.9,32.35769756]
[1731486409850,22.64429756,205.95,205.86,38.51369756]
[1731486410039,4.855,205.97,205.9,22.64429756]
[1731486411354,4.855,205.97,205.9,26.52959756]
[1731486412432,22.64429756,206.03,205.94,22.64429756]
[1731486413877,4.8538,206.02,205.94,26.52889756]
[1731486413941,4.8538,206.02,205.96,22.64429756]
[1731486414141,22.64429756,206.05,205.96,22.64429756]
[1731486415362,4.8534,206.04,205.96,38.73219756]
[1731486415531,22.64429756,206.01,205.92,22.64429756]
[1731486416564,8.54033689,206.09,205.93,0.12549]
[1731486416837,22.64429756,206.11,206.02,22.64429756]
[1731486417260,4.851,206.14,206.06,22.64429756]
[1731486417469,4.851,206.14,206.06,26.52659756]
[1731486418883,4.851,206.14,206.06,22.64429756]
[1731486419065,22.64429756,206.13,206.04,344.35099756]
[1731486419445,4.851,206.14,206.06,22.64429756]
[1731486420863,4.851,206.14,206.06,22.64429756]
[1731486422162,4.851,206.14,206.06,26.52659756]
[1731486422555,4.851,206.14,206.06,338.52659756]
[1731486423247,4.851,206.14,206.06,26.52659756]
[1731486423452,46.42118156,206.13,206.04,32.35099756]
[1731486423645,22.64429756,206.09,205.99,9.7088]
[1731486423853,22.64429756,206.09,206.0,22.64429756]
[1731486424970,4.8524,206.08,206.0,22.64429756]
[1731486425347,46.42118156,206.07,205.99,9.7088]
[1731486425555,22.64429756,206.05,205.96,22.64429756]
[1731486425756,22.64429756,206.01,205.94,22.64429756]
[1731486426065,23.776884,206.07,205.98,22.64429756]
[1731486426271,22.64429756,206.05,205.98,22.64429756]
[1731486426752,22.64429756,206.05,205.96,22.64429756]
[1731486426953,4.8534,206.04,205.96,22.64429756]
[1731486427154,22.64429756,206.03,205.96,22.64429756]
[1731486427365,22.64429756,206.03,205.94,22.64429756]
[1731486427672,22.64429756,206.01,205.94,22.64429756]
[1731486428159,22.64429756,206.01,205.92,22.64429756]
[1731486428552,22.64429756,206.03,205.94,22.64429756]
[1731486429370,4.8538,206.02,205.94,22.64429756]
[1731486429555,22.64429756,206.01,205.94,22.64429756]
[1731486429971,2.21663314,206.06,205.98,22.64429756]
[1731486429972,4.8529,206.06,205.98,22.64429756]
[1731486431862,4.8529,206.06,206.0,22.64429756]
[1731486432463,4.8529,206.06,205.98,22.64429756]
[1731486432664,22.64429756,206.02,205.93,9.7119]
[1731486432972,22.64429756,206.02,205.93,32.35619756]
[1731486433366,4.8541,206.01,205.95,22.64429756]
[1731486434257,4.8538,206.03,205.97,22.64429756]
[1731486435078,4.8534,206.05,205.97,22.64429756]
[1731486435459,4.8534,206.05,205.97,36.23829756]
[1731486436880,4.8534,206.05,205.98,14.11858941]
[1731486438673,4.8509,206.15,206.04,14.11858941]
[1731486438878,4.8509,206.15,206.09,14.11858941]
[1731486439068,4.8509,206.15,206.0,14.21858941]
[1731486439069,4.8509,206.15,206.07,14.11858941]
[1731486439376,4.8509,206.15,206.02,0.1]
[1731486439377,4.8509,206.15,206.09,14.11858941]
[1731486439778,4.8504,206.17,206.14,14.11858941]
[1731486440074,4.8504,206.17,206.1,14.11858941]
[1731486440456,14.11858941,206.16,206.08,14.11858941]
[1731486440661,4.8508,206.15,206.08,14.11858941]
[1731486440873,4.8508,206.15,206.09,22.56737934]
[1731486442065,4.8508,206.15,206.1,22.4254]
[1731486442273,30.4327,206.25,206.1,22.4254]
[1731486442274,4.8475,206.29,206.14,22.56737934]
[1731486442570,4.8475,206.29,206.21,22.56737934]
[1731486442960,22.56737934,206.28,206.21,22.56737934]
[1731486443361,4.848,206.27,206.19,22.56737934]
[1731486443567,46.34426334,206.26,206.17,22.56737934]
[1731486443767,22.56737934,206.24,206.15,22.56737934]
[1731486444557,4.8489,206.23,206.15,22.56737934]
[1731486444757,46.34426334,206.26,206.17,22.56737934]
[1731486444977,46.34426334,206.26,206.15,13.5822]
[1731486444978,22.56737934,206.24,206.15,36.14957934]
[1731486445470,22.56737934,206.24,206.15,344.26897934]
[1731486445678,22.56737934,206.24,206.15,22.56737934]
[1731486446766,4.8489,206.23,206.17,22.56737934]
[1731486447066,4.848,206.27,206.19,22.56737934]
[1731486447678,22.56737934,206.25,206.15,36.14957934]
[1731486448176,22.56737934,206.25,206.15,32.26897934]
[1731486448375,22.56737934,206.23,206.15,22.56737934]
[1731486448880,23.776884,206.26,206.15,22.56737934]
[1731486449060,22.56737934,206.24,206.15,22.56737934]
[1731486449260,22.56737934,206.26,206.17,22.56737934]
[1731486449461,22.56737934,206.26,206.15,9.7016]
[1731486449670,22.56737934,206.24,206.16,22.56737934]
[1731486450274,2.24929954,206.32,206.18,22.56737934]
[1731486450472,22.56737934,206.36,206.27,22.56737934]
[1731486450965,22.56737934,206.34,206.25,22.56737934]
[1731486451273,22.56737934,206.32,206.23,22.56737934]
[1731486451471,22.56737934,206.3,206.21,22.56737934]
[1731486451977,22.56737934,206.28,206.19,22.56737934]
[1731486452360,22.56737934,206.28,206.21,22.56737934]
[1731486452561,4.848,206.27,206.21,22.56737934]
[1731486453079,4.848,206.27,206.2,3.8796]
[1731486453260,4.847,206.31,206.23,22.56737934]
[1731486453461,22.56737934,206.3,206.23,22.56737934]
[1731486453977,4.847,206.31,206.23,22.56737934]
[1731486455061,16.9565,206.41,206.28,22.56737934]
[1731486455268,22.56737934,206.39,206.3,22.56737934]
[1731486456366,4.8454,206.38,206.3,22.56737934]
[1731486459162,4.8454,206.38,206.32,22.56737934]
[1731486459361,4.8454,206.38,206.24,7.11027314]
[1731486459362,6.6472,206.37,206.24,7.01027314]
[1731486459599,22.56737934,206.31,206.22,15.3253]
[1731486459773,22.56737934,206.31,206.22,19.2045]
[1731486460091,22.56737934,206.31,206.23,22.56737934]
[1731486460664,22.56737934,206.35,206.25,22.56737934]
[1731486460891,14.0774175,206.37,206.28,14.0774175]
[1731486461098,4.8454,206.38,206.3,14.0774175]
[1731486461599,4.8454,206.38,206.26,14.0774175]
[1731486461600,14.0774175,206.35,206.26,14.0774175]
[1731486462788,4.8463,206.34,206.26,14.0774175]
[1731486463081,2.43387536,206.43,206.25,3.8787]
[1731486463082,4.8447,206.41,206.33,14.0774175]
[1731486463269,4.8439,206.45,206.37,14.0774175]
[1731486463471,4.8439,206.45,206.31,21.5538]
[1731486463472,4.8439,206.45,206.39,14.0774175]
[1731486463673,4.8439,206.45,206.37,14.0774175]
[1731486463870,4.8439,206.45,206.31,21.5538]
[1731486463871,4.8439,206.45,206.39,14.0774175]
[1731486464073,4.8439,206.45,206.37,14.0774175]
[1731486464267,18.9213175,206.45,206.35,14.0774175]
[1731486464472,14.0774175,206.43,206.35,14.0774175]
[1731486464884,22.50911758,206.42,206.33,22.50911758]
[1731486465381,22.50911758,206.4,206.33,22.50911758]
[1731486466392,4.8451,206.39,206.33,22.50911758]
[1731486466776,22.50911758,206.35,206.23,16.3578]
[1731486466987,22.50911758,206.32,206.23,38.86691758]
[1731486467170,22.50911758,206.32,206.23,52.44381758]
[1731486467369,22.50911758,206.32,206.23,364.44381758]
[1731486467872,22.50911758,206.32,206.23,52.44381758]
[1731486468270,27.35601758,206.32,206.23,29.9347]
[1731486468472,4.8456,206.38,206.29,22.50911758]
[1731486468795,4.8456,206.38,206.31,22.50911758]
[1731486469099,27.35471758,206.38,206.29,22.50911758]
[1731486469980,27.35471758,206.38,206.29,26.38701758]
[1731486470777,27.35471758,206.38,206.29,338.38701758]
[1731486472076,27.35471758,206.38,206.29,334.50911758]
[1731486472275,27.35471758,206.38,206.29,22.50911758]
[1731486472482,27.35471758,206.38,206.29,26.38701758]
[1731486473288,22.50911758,206.38,206.29,36.08201758]
[1731486473473,27.35451758,206.38,206.29,36.08201758]
[1731486474687,22.50911758,206.36,206.29,9.695]
[1731486474885,22.50911758,206.36,206.29,13.573]
[1731486475083,22.50911758,206.36,206.29,9.695]
[1731486475601,22.50911758,206.36,206.29,13.573]
[1731486476488,27.35501758,206.36,206.29,13.573]
[1731486476989,27.35501758,206.36,206.29,36.08211758]
[1731486477379,27.35451758,206.38,206.31,22.50911758]
[1731486479393,27.35451758,206.38,206.29,32.20411758]
[1731486480376,22.50911758,206.4,206.31,26.38661758]
[1731486480877,22.50911758,206.38,206.29,36.08191758]
[1731486481283,22.50911758,206.38,206.31,22.50911758]
[1731486481585,22.50911758,206.38,206.29,334.50911758]
[1731486481991,22.50911758,206.38,206.29,338.38701758]
[1731486482477,4.8456,206.37,206.29,338.38701758]
[1731486482672,4.8456,206.37,206.27,26.38741758]
[1731486482673,22.50911758,206.36,206.27,26.38741758]
[1731486483078,22.50911758,206.34,206.25,32.20591758]
[1731486483875,22.50911758,206.3,206.23,22.50911758]
[1731486484084,22.50911758,206.3,206.2,9.6989]
[1731486484085,22.50911758,206.3,206.21,22.50911758]
[1731486484487,22.50911758,206.28,206.21,22.50911758]
[1731486484686,22.50911758,206.3,206.21,22.50911758]
[1731486484887,14.08578769,206.3,206.22,14.08578769]
[1731486485193,4.8468,206.32,206.26,14.08578769]
[1731486485403,18.93258769,206.32,206.24,14.08578769]
[1731486486401,14.08578769,206.3,206.22,14.08578769]
[1731486487784,14.08578769,206.3,206.2,14.08578769]
[1731486488285,14.08578769,206.28,206.2,14.08578769]
[1731486488492,4.848,206.27,206.2,14.08578769]
[1731486489815,14.08578769,206.24,206.14,14.08578769]
[1731486490685,14.08578769,206.22,206.14,14.08578769]
[1731486490907,4.8494,206.21,206.14,326.08578769]
[1731486491998,14.08578769,206.2,206.14,312.0]
[1731486492302,14.08578769,206.2,206.12,14.08578769]
[1731486492478,14.08578769,206.18,206.1,14.08578769]
[1731486493199,14.08578769,206.2,206.12,14.08578769]
[1731486493778,14.08578769,206.2,206.1,17.96728769]
[1731486493981,4.8498,206.19,206.1,17.96728769]
[1731486495188,4.8498,206.19,206.1,329.96728769]
[1731486495796,14.08578769,206.18,206.1,326.08578769]
[1731486496302,14.08578769,206.18,206.1,329.96728769]
[1731486496711,14.08578769,206.18,206.1,326.08578769]
[1731486496896,14.08578769,206.18,206.1,14.08578769]
[1731486497091,4.8498,206.19,206.12,14.08578769]
[1731486497607,14.08578769,206.18,206.1,23.78978769]
[1731486497985,14.08578769,206.18,206.1,27.67138769]
[1731486498312,14.08578769,206.18,206.1,23.78978769]
[1731486498689,4.8503,206.17,206.1,14.08578769]
[1731486499110,4.8503,206.17,206.1,17.96728769]
[1731486499410,4.8503,206.17,206.12,14.08578769]
[1731486500109,14.08578769,206.18,206.1,326.08578769]
[1731486501409,4.8482,206.26,206.16,14.08578769]
[1731486501716,14.08578769,206.25,206.16,14.08578769]
[1731486502186,4.8487,206.24,206.16,14.08578769]
[1731486502389,4.8487,206.24,206.18,14.08578769]
[1731486502696,4.8487,206.24,206.16,13.5816]
[1731486502697,4.8483,206.26,206.2,14.08578769]
[1731486503612,4.8476,206.29,206.22,14.08578769]
[1731486503908,18.93338769,206.29,206.22,14.08578769]
[1731486504985,18.93338769,206.29,206.2,14.08578769]
[1731486506103,31.05218769,206.29,206.2,14.08578769]
[1731486506313,31.05218769,206.29,206.18,14.08578769]
[1731486506314,14.08578769,206.27,206.18,14.08578769]
[1731486507309,14.08578769,206.25,206.18,14.08578769]
[1731486507610,14.08578769,206.23,206.14,14.08578769]
[1731486507791,14.08578769,206.21,206.14,14.08578769]
[1731486508306,4.8496,206.2,206.14,14.08578769]
[1731486509291,11.3292,206.23,206.16,14.08578769]
[1731486509992,25.41498769,206.23,206.16,14.08578769]
[1731486510189,25.41498769,206.23,206.13,14.08578769]
[1731486510408,14.08578769,206.21,206.13,14.08578769]
[1731486511186,11.3292,206.23,206.13,14.08578769]
[1731486511387,11.3292,206.23,206.11,3.8813]
[1731486511388,31.05148769,206.3,206.21,14.08578769]
[1731486511601,14.08578769,206.22,206.1,0.1]
[1731486511806,14.08578769,206.18,206.09,14.08578769]
[1731486512686,14.08578769,206.16,206.06,9.7055]
[1731486512908,14.08578769,206.16,206.08,14.08578769]
[1731486513109,14.08578769,206.16,206.06,9.7055]
[1731486513110,14.08578769,206.16,206.06,14.08578769]
[1731486513312,4.8508,206.15,206.06,14.08578769]
[1731486513489,4.8508,206.15,206.08,14.08578769]
[1731486513918,15.1692,206.22,206.08,14.08578769]
[1731486514207,14.08578769,206.19,206.1,14.08578769]
[1731486514386,14.08578769,206.17,206.1,14.08578769]
[1731486514600,14.08578769,206.15,206.05,312.0]
[1731486514802,14.08578769,206.15,206.06,14.08578769]
[1731486515312,14.08578769,206.13,206.06,14.08578769]
[1731486515507,4.8515,206.12,206.06,14.08578769]
[1731486515714,4.8515,206.12,206.04,14.08578769]
[1731486516509,4.8515,206.12,206.06,14.08578769]
[1731486516910,4.8515,206.12,206.04,14.08578769]
[1731486517399,18.93728769,206.12,206.04,14.08578769]
[1731486517599,14.08578769,206.07,205.93,16.6096]
[1731486517792,14.08578769,206.0,205.93,16.6096]
[1731486518103,14.08578769,206.02,205.94,14.08578769]
[1731486518293,14.08578769,206.0,205.93,20.4942]
[1731486518489,14.08578769,206.02,205.94,14.08578769]
[1731486519421,18.93978769,206.02,205.94,14.08578769]
[1731486519720,14.08578769,206.0,205.9,17.97088769]
[1731486520719,14.08578769,205.98,205.9,17.97088769]
[1731486520919,14.08578769,205.98,205.9,14.08578769]
[1731486521302,14.08578769,205.98,205.89,3.8854]
[1731486522100,4.855,205.97,205.89,3.8854]
[1731486522307,14.08578769,206.02,205.94,14.08578769]
[1731486523194,14.08578769,206.06,205.98,14.08578769]
[1731486523395,6.5799,206.07,206.0,14.08578769]
[1731486524291,11.4327,206.07,206.0,14.08578769]
[1731486524497,14.08578769,206.06,205.99,9.7091]
[1731486524916,22.58893239,206.06,205.99,9.7091]
[1731486525124,11.4327,206.07,205.99,9.7091]
[1731486525304,11.4327,206.07,206.0,22.58893239]
[1731486525621,34.02163239,206.07,205.99,9.7091]
[1731486526010,34.02163239,206.07,205.99,13.5927]
[1731486526214,34.02163239,206.07,205.99,325.5927]
[1731486526422,34.02163239,206.07,205.99,312.0]
[1731486527531,22.58893239,206.05,205.96,22.58893239]
[1731486528041,22.58893239,206.03,205.94,32.30023239]
[1731486528519,22.58893239,206.03,205.96,22.58893239]
[1731486528915,23.5644,206.07,205.98,22.58893239]
[1731486528916,34.02163239,206.07,205.98,22.58893239]
[1731486529508,22.58893239,206.05,205.96,22.58893239]
[1731486529714,4.8534,206.04,205.96,26.47303239]
[1731486530536,4.8534,206.04,205.98,22.58893239]
[1731486531133,16.2919089,206.11,206.02,22.58893239]
[1731486531423,6.1113,206.12,205.98,13.5934]
[1731486531424,6.1113,206.12,206.06,22.58893239]
[1731486531600,4.8514,206.13,206.06,22.58893239]
[1731486532720,4.8514,206.13,206.06,26.47113239]
[1731486533729,27.44033239,206.13,206.04,36.17793239]
[1731486534100,20.0,206.1,206.02,22.58893239]
[1731486534523,20.0,206.1,206.03,0.12549]
[1731486535727,24.852,206.1,206.03,4.00839]
[1731486536516,22.58893239,206.09,206.01,3.8832]
[1731486536826,22.58893239,206.09,206.01,0.12549]
[1731486537025,22.58893239,206.09,206.0,36.18093239]
[1731486537911,24.8524,206.08,206.0,36.18093239]
[1731486538112,20.0,206.04,205.99,312.0]
[1731486538410,24.8524,206.08,206.0,22.58893239]
[1731486538411,10.906,206.08,206.0,22.58893239]
[1731486538611,20.0,206.07,206.0,22.58893239]
[1731486539603,42.58893239,206.07,206.0,3.8833]
[1731486540112,47.44173239,206.07,205.98,36.18223239]
[1731486540305,22.58893239,206.03,205.94,22.58893239]
[1731486541125,20.0,206.05,205.93,20.1738]
[1731486541327,42.58893239,206.05,205.96,22.58893239]
[1731486541713,42.58893239,206.05,205.97,3.884]
[1731486541714,4.8534,206.04,205.97,3.884]
[1731486542607,22.58893239,206.03,205.94,22.58893239]
[1731486542813,22.58893239,206.01,205.93,9.7117]
[1731486543018,22.58893239,206.01,205.93,13.5965]
[1731486543217,22.58893239,206.01,205.93,9.7117]
[1731486543416,22.58893239,206.01,205.87,22.366]
[1731486543417,22.58893239,205.99,205.9,22.58893239]
[1731486543608,22.58893239,205.99,205.9,26.47423239]
[1731486544528,22.58893239,205.97,205.89,9.7137]
[1731486544739,20.0,205.96,205.89,325.5992]
[1731486545329,20.0,205.96,205.89,13.5992]
[1731486545925,27.44413239,205.97,205.9,22.58893239]
[1731486546316,27.44413239,205.97,205.88,22.58893239]
[1731486546815,18.98573626,205.97,205.89,14.13053626]
[1731486547119,20.0,205.96,205.87,18.01633626]
[1731486547322,20.0,205.96,205.87,27.73113626]
[1731486547526,4.8555,205.95,205.87,27.73113626]
[1731486547831,4.8555,205.95,205.89,14.13053626]
[1731486548131,20.0,205.96,205.89,14.13053626]
[1731486548343,18.98573626,205.97,205.89,14.13053626]
[1731486548813,14.13053626,205.95,205.87,339.73123626]
[1731486549633,24.8557,205.94,205.87,14.13053626]
[1731486549831,24.8557,205.94,205.87,27.73113626]
[1731486549832,20.0,205.94,205.87,27.73113626]
[1731486550211,18.98623626,205.95,205.87,27.73113626]
[1731486551137,14.13053626,205.93,205.85,18.01673626]
[1731486551319,34.13053626,205.92,205.83,25.2682]
[1731486551514,14.13053626,205.9,205.83,13.6032]
[1731486551837,14.13053626,205.9,205.83,9.7165]
[1731486551838,20.0,205.89,205.83,9.7165]
[1731486552014,20.0,205.89,205.83,13.6032]
[1731486552333,14.13053626,205.92,205.84,14.13053626]
[1731486552531,14.13053626,205.92,205.84,326.13053626]
[1731486553118,18.98683626,205.92,205.85,3.8863]
[1731486554421,14.13053626,205.89,205.8,27.73583626]
[1731486554618,14.13053626,205.89,205.82,14.13053626]
[1731486555436,25.50723626,205.93,205.85,13.6021]
[1731486555939,14.13053626,205.91,205.85,13.6021]
[1731486556421,14.13053626,205.91,205.83,3.8865]
[1731486556615,25.50723626,205.93,205.84,14.13053626]
[1731486556932,14.13053626,205.95,205.86,14.13053626]
[1731486557434,14.13053626,205.95,205.86,326.13053626]
[1731486557621,18.98613626,205.95,205.87,3.8859]
[1731486559122,18.98663626,205.93,205.87,3.8859]
[1731486559719,14.13053626,205.91,205.85,9.7154]
[1731486560241,14.13053626,205.89,205.82,18.01723626]
[1731486560719,14.13053626,205.89,205.82,27.73443626]
[1731486562418,14.13053626,205.91,205.82,27.73443626]
[1731486562619,18.98703626,205.91,205.82,27.73443626]
[1731486565236,18.98703626,205.91,205.84,14.13053626]
[1731486566121,18.98703626,205.91,205.82,335.84773626]
[1731486566327,18.98703626,205.91,205.82,27.73453626]
[1731486567442,14.13053626,205.91,205.82,27.73453626]
[1731486567741,12.1392,205.95,205.84,14.13053626]
[1731486567742,14.13053626,205.93,205.84,14.13053626]
[1731486567936,14.13053626,205.91,205.84,14.13053626]
[1731486568339,14.13053626,205.91,205.82,27.73453626]
[1731486569053,14.13053626,205.91,205.84,14.13053626]
[1731486569426,18.98703626,205.91,205.84,14.13053626]
[1731486569629,4.8565,205.91,205.84,14.13053626]
[1731486569829,14.13053626,205.93,205.84,14.13053626]
[1731486570138,18.98673626,205.93,205.84,14.13053626]
[1731486571137,4.8562,205.93,205.88,14.13053626]
[1731486571341,4.8555,205.95,205.88,14.13053626]
[1731486571944,2.2077032,206.0,205.91,14.13053626]
[1731486571945,4.8543,206.0,205.91,14.13053626]
[1731486572129,162.6,206.03,205.96,14.13053626]
[1731486572440,162.6,206.02,205.96,14.13053626]
[1731486572643,4.854,206.02,205.96,14.13053626]
[1731486572845,162.6,206.03,205.98,14.13053626]
[1731486573055,162.6,206.04,206.0,14.13053626]
[1731486573225,162.6,206.07,206.02,14.13053626]
[1731486573546,162.6,206.06,206.02,14.13053626]
[1731486573928,4.8523,206.09,206.02,14.13053626]
[1731486574541,4.8523,206.09,206.0,14.13053626]
[1731486574751,23.776884,206.08,206.0,14.13053626]
[1731486574922,20.0,206.07,205.98,27.72393626]
[1731486575123,23.776884,206.06,205.98,23.84013626]
[1731486575639,23.776884,206.06,206.0,14.13053626]
[1731486576432,4.8531,206.05,206.0,14.13053626]
[1731486577253,23.776884,206.04,205.96,14.13053626]
[1731486577549,37.90742026,206.04,205.96,14.13053626]
[1731486578242,14.13053626,206.02,205.94,23.84203626]
[1731486578448,4.8541,206.01,205.94,23.84203626]
[1731486578827,23.776884,206.04,205.96,14.13053626]
[1731486579144,28.630384,206.04,205.96,14.13053626]
[1731486579928,14.13053626,206.05,205.96,14.13053626]
[1731486580652,18.98383626,206.05,205.97,3.884]
[1731486581051,4.8533,206.05,205.98,14.13053626]
[1731486581353,4.8528,206.07,206.0,14.13053626]
[1731486581735,18.98333626,206.07,206.0,14.13053626]
[1731486582551,17.53398302,206.11,205.97,325.5941]
[1731486582552,14.13053626,206.09,206.02,14.13053626]
[1731486582735,18.98283626,206.09,206.02,14.13053626]
[1731486583333,18.98283626,206.09,206.01,3.8833]
[1731486583558,4.8523,206.09,206.02,14.13053626]
[1731486584669,23.776884,206.08,206.0,14.13053626]
[1731486584842,4.8527,206.07,206.0,18.01393626]
[1731486585243,15.3051,206.11,206.03,14.13053626]
[1731486585461,6.5996,206.14,206.07,14.13053626]
[1731486585961,4.8503,206.17,206.09,14.13053626]
[1731486586836,4.8503,206.17,206.09,18.01223626]
[1731486587347,6.4773,206.19,206.11,14.13053626]
[1731486587556,4.8499,206.19,206.13,14.13053626]
[1731486587734,4.8495,206.21,206.13,14.13053626]
[1731486587948,4.8495,206.21,206.15,14.13053626]
[1731486588247,4.8491,206.23,206.15,14.13053626]
[1731486588453,4.8491,206.23,206.17,14.13053626]
[1731486591249,4.8491,206.23,206.15,3.8805]
[1731486591250,4.8491,206.23,206.15,14.13053626]